bitfinex-derivatives/quotes_SOLF0:USTF0_20250124
["timestamp","ask_amount","ask_price","bid_price","bid_amount"]
[1737701129479,153.05829525,262.35,262.19,14.56185525]
[1737701129682,0.02468823,262.24,262.2,1.6687]
[1737701129882,3.8126,262.33,262.2,1.6687]
[1737701130486,153.05829525,262.45,262.2,1.6687]
[1737701130686,153.05829525,262.44,262.2,1.6687]
[1737701130886,0.02910378,262.35,262.3,0.02772702]
[1737701131184,3.8128,262.31,262.3,0.02772702]
[1737701131586,3.8135,262.27,262.2,1.6687]
[1737701131886,14.56185525,262.41,262.2,1.6687]
[1737701132083,153.05829525,262.4,262.2,1.6687]
[1737701132382,14.56185525,262.36,262.14,14.56185525]
[1737701132581,153.05829525,262.39,262.14,14.56185525]
[1737701132786,0.02483166,262.28,262.22,0.02570354]
[1737701133088,0.02483166,262.28,262.18,3.8146]
[1737701133285,0.02483166,262.28,262.14,14.56185525]
[1737701133487,0.02483166,262.28,262.22,0.02732891]
[1737701134288,3.8138,262.25,262.22,0.02732891]
[1737701134484,14.56185525,262.6,262.24,14.56185525]
[1737701134691,2.55,262.59,262.29,14.56185525]
[1737701134988,14.56185525,262.55,262.29,14.56185525]
[1737701135483,14.56185525,262.5,262.25,2.9967]
[1737701135682,1.5095,262.49,262.25,2.9967]
[1737701135882,3.8116,262.39,262.25,2.9967]
[1737701136088,1.5095,262.49,262.25,2.9967]
[1737701136793,3.8126,262.33,262.25,2.9967]
[1737701137091,0.02874933,262.4,262.25,2.9967]
[1737701137291,1.5095,262.49,262.26,0.02859301]
[1737701137491,0.02652193,262.35,262.26,0.02859301]
[1737701137792,0.02652193,262.35,262.28,0.02918569]
[1737701137989,0.02652193,262.35,262.28,14.59104094]
[1737701138184,3.811,262.44,262.28,14.59104094]
[1737701138386,14.56185525,262.55,262.28,14.56185525]
[1737701138691,14.56185525,262.5,262.25,2.9967]
[1737701138892,3.8115,262.41,262.3,14.56185525]
[1737701139091,14.56185525,262.5,262.3,14.56185525]
[1737701139391,0.02809791,262.43,262.37,0.02619685]
[1737701139588,3.8117,262.39,262.37,0.02619685]
[1737701140290,14.56185525,262.4,262.2,3.86]
[1737701140890,14.56185525,262.4,262.16,14.56185525]
[1737701141487,14.56185525,262.3,262.25,0.02644386]
[1737701141791,14.56185525,262.3,262.09,2.9284]
[1737701141792,1.27,262.29,262.09,2.9284]
[1737701141984,3.8145,262.2,262.09,2.9284]
[1737701142186,1.27,262.29,262.08,0.34521]
[1737701142187,14.56185525,262.25,262.08,0.34521]
[1737701142689,1.27,262.29,262.11,14.56185525]
[1737701142991,0.02430156,262.19,262.14,0.02538095]
[1737701143289,1.27,262.29,262.14,0.02538095]
[1737701143493,1.5324,262.28,262.14,0.02538095]
[1737701144387,0.02804301,262.24,262.14,0.02538095]
[1737701145190,3.84194301,262.24,262.14,0.02538095]
[1737701145390,0.02804301,262.24,262.14,0.02538095]
[1737701145589,0.02804301,262.24,262.14,1.63128095]
[1737701146092,0.02804301,262.24,262.15,3.8151]
[1737701146296,0.02804301,262.24,262.14,1.63128095]
[1737701146891,3.8145,262.2,262.14,0.02538095]
[1737701147487,3.8151,262.16,262.14,0.02538095]
[1737701148296,0.02456692,262.18,262.14,0.02538095]
[1737701149092,0.02456692,262.18,262.14,14.5872362]
[1737701149297,0.02456692,262.18,262.14,0.02538095]
[1737701150491,0.02456692,262.18,262.1,1.5956]
[1737701150492,0.02456692,262.18,262.1,4.0369]
[1737701150695,0.02456692,262.18,262.14,14.56185525]
[1737701151199,0.02456692,262.18,262.1,4.0369]
[1737701151399,0.02456692,262.18,262.1,7.8527]
[1737701151594,0.02456692,262.18,262.11,0.02493145]
[1737701151800,14.56185525,262.29,262.04,3.8167]
[1737701152000,0.02445235,262.17,262.12,0.02876437]
[1737701152197,14.56185525,262.3,262.03,14.56185525]
[1737701152401,0.02785969,262.17,262.07,0.02860735]
[1737701152602,0.02785969,262.17,262.03,14.56185525]
[1737701152901,0.02785969,262.17,262.09,0.02620583]
[1737701153293,0.02785969,262.17,262.13,14.56185525]
[1737701153699,0.02785969,262.17,262.15,3.815]
[1737701153895,1.6287,262.31,262.13,14.56185525]
[1737701154196,3.8132,262.29,262.13,14.56185525]
[1737701154403,1.324,262.32,262.18,14.56185525]
[1737701154699,1.5479,262.45,262.18,14.56185525]
[1737701154904,1.2152,262.44,262.18,14.56185525]
[1737701155098,0.0274743,262.28,262.23,0.02569814]
[1737701157998,14.56185525,262.47,262.23,14.58755339]
[1737701158302,3.8123,262.35,262.24,5.3303]
[1737701158700,1.3217,262.44,262.24,1.5165]
[1737701158898,3.8128,262.32,262.24,1.5165]
[1737701159103,1.3217,262.44,262.24,1.5165]
[1737701159305,0.02430318,262.31,262.25,0.02521171]
[1737701159501,14.56185525,262.37,262.31,0.02551849]
[1737701159805,14.56185525,262.37,262.15,1.5165]
[1737701160308,14.56185525,262.42,262.17,14.56185525]
[1737701160806,0.02774168,262.32,262.27,0.02900293]
[1737701161505,3.8131,262.29,262.27,0.02900293]
[1737701162806,0.02774168,262.32,262.27,0.02900293]
[1737701163409,3.8131,262.29,262.27,0.02900293]
[1737701163808,3.8146,262.19,262.15,1.5165]
[1737701164001,3.8146,262.19,262.1,2.5942]
[1737701164812,16.05465525,262.31,262.1,6.41]
[1737701165008,0.02670045,262.17,262.12,0.02639472]
[1737701165311,16.05465525,262.31,262.1,2.5942]
[1737701165509,3.8133,262.28,262.13,14.56185525]
[1737701166015,3.8134,262.27,262.18,3.8147]
[1737701166606,1.3186,262.35,262.15,8.206909]
[1737701166812,0.02838021,262.25,262.2,0.02479313]
[1737701167717,3.8141,262.22,262.2,0.02479313]
[1737701167915,5.30516887,262.43,262.21,14.56185525]
[1737701168111,5.30516887,262.43,262.27,14.56185525]
[1737701168415,1.309,262.48,262.28,8.206909]
[1737701168613,1.309,262.48,262.29,8.206909]
[1737701168816,3.8111,262.43,262.3,12.019709]
[1737701169011,3.8111,262.43,262.31,8.206909]
[1737701169212,0.02535197,262.39,262.34,0.0278527]
[1737701169612,0.02535197,262.39,262.34,8.2347617]
[1737701169813,0.02535197,262.39,262.34,0.0278527]
[1737701170207,0.02535197,262.39,262.35,8.206909]
[1737701170614,0.02535197,262.39,262.33,3.8124]
[1737701171013,0.02535197,262.39,262.27,10.22340228]
[1737701171215,0.02535197,262.39,262.33,3.8124]
[1737701171415,0.02535197,262.39,262.27,10.22340228]
[1737701171416,0.02535197,262.39,262.27,24.78525753]
[1737701171618,0.02535197,262.39,262.28,10.22340228]
[1737701171817,0.02535197,262.39,262.3,0.02836178]
[1737701172619,0.02535197,262.39,262.32,14.56185525]
[1737701172806,0.02535197,262.39,262.34,3.8123]
[1737701173823,0.02535197,262.39,262.38,3.8118]
[1737701174018,3.81,262.51,262.37,14.56185525]
[1737701174215,2.602,262.58,262.37,14.56185525]
[1737701174417,41.13788072,262.65,262.48,3.8103]
[1737701174719,41.13788072,262.65,262.43,14.56185525]
[1737701174914,41.13788072,262.65,262.44,1.3255]
[1737701175113,0.02561102,262.56,262.5,0.02915164]
[1737701175821,3.8099,262.51,262.5,0.02915164]
[1737701176323,3.8099,262.51,262.38,19.67675525]
[1737701176324,3.81,262.5,262.36,1.2207]
[1737701176514,1.5659,262.55,262.36,1.2207]
[1737701176711,1.5659,262.55,262.28,18.46185525]
[1737701176913,1.21,262.54,262.28,18.46185525]
[1737701177112,3.8106,262.47,262.3,3.8129]
[1737701177318,1.21,262.54,262.28,18.46185525]
[1737701177519,0.02712082,262.41,262.36,0.02533587]
[1737701177716,1.21,262.54,262.28,18.46185525]
[1737701177913,0.02895104,262.37,262.32,0.02599468]
[1737701178113,14.56185525,262.52,262.28,18.46185525]
[1737701178314,0.02755756,262.37,262.32,0.02886131]
[1737701178522,3.8118,262.38,262.28,18.46185525]
[1737701178823,14.56185525,262.52,262.37,0.35318]
[1737701179219,0.02898523,262.47,262.42,0.02633824]
[1737701179422,0.02898523,262.47,262.37,0.35318]
[1737701179817,3.8118,262.38,262.37,0.35318]
[1737701180525,3.8121,262.36,262.35,0.02413271]
[1737701180823,14.56185525,262.47,262.25,1.2207]
[1737701181024,3.8124,262.34,262.33,0.02867997]
[1737701181222,0.02835861,262.38,262.33,0.02867997]
[1737701183322,0.02835861,262.38,262.33,14.59053522]
[1737701184724,1.21,262.54,262.33,14.59053522]
[1737701184925,1.21,262.54,262.33,14.56185525]
[1737701185223,1.21,262.54,262.38,14.56185525]
[1737701185828,0.02486921,262.49,262.43,0.02517873]
[1737701186224,3.8109,262.45,262.43,0.02517873]
[1737701190827,3.8115,262.4,262.33,1.82624525]
[1737701191028,2.5085,262.54,262.35,3.8122]
[1737701191527,2.5085,262.54,262.33,1.82624525]
[1737701191730,2.5085,262.54,262.37,3.8119]
[1737701192029,0.02450301,262.46,262.41,0.02753405]
[1737701193530,3.8111,262.43,262.41,0.02753405]
[1737701196333,0.02450301,262.46,262.41,0.02753405]
[1737701196633,19.86702412,262.66,262.43,14.56185525]
[1737701196826,1.2365,262.6,262.43,14.56185525]
[1737701197030,1.2386,262.65,262.43,14.56185525]
[1737701197228,5.30516887,262.66,262.38,3.84]
[1737701197229,5.30516887,262.66,262.48,14.56185525]
[1737701197428,5.30516887,262.66,262.5,3.81]
[1737701197632,5.30516887,262.66,262.49,1.661]
[1737701197835,0.02924633,262.61,262.55,0.02812068]
[1737701198435,3.8087,262.59,262.55,0.02812068]
[1737701198732,0.02924633,262.61,262.55,0.02812068]
[1737701199830,3.8088,262.59,262.55,0.02812068]
[1737701200031,0.02924633,262.61,262.55,0.02812068]
[1737701201134,3.8086,262.6,262.55,0.02812068]
[1737701201734,0.02924633,262.61,262.55,0.02812068]
[1737701202534,3.8091,262.57,262.55,0.02812068]
[1737701203331,0.02924633,262.61,262.55,0.02812068]
[1737701203332,3.8087,262.6,262.55,0.02812068]
[1737701203835,0.02924633,262.61,262.55,0.02812068]
[1737701204536,1.2074,262.71,262.58,14.56185525]
[1737701204739,71.3,262.79,262.58,14.56185525]
[1737701204936,2.4998,262.78,262.58,14.56185525]
[1737701205843,0.0292773,262.71,262.65,0.02582248]
[1737701206139,3.8077,262.66,262.65,0.02582248]
[1737701206339,3.8077,262.66,262.58,18.37065525]
[1737701206340,0.0292773,262.71,262.48,14.56185525]
[1737701206633,14.56185525,262.71,262.48,14.56185525]
[1737701207332,3.808,262.65,262.55,3.8093]
[1737701207533,0.02530256,262.62,262.57,0.02859392]
[1737701208733,0.02530256,262.62,262.57,14.59044917]
[1737701208939,2.4998,262.78,262.58,2.9628]
[1737701209937,0.02919387,262.71,262.65,0.02643696]
[1737701211235,3.83619387,262.71,262.65,0.02643696]
[1737701211440,0.02919387,262.71,262.65,0.02643696]
[1737701214242,3.8073,262.69,262.65,0.02643696]
[1737701215844,3.8076,262.67,262.65,0.02643696]
[1737701216944,0.02919387,262.71,262.65,0.02643696]
[1737701218251,3.8065,262.75,262.65,3.83423696]
[1737701218947,71.3,262.79,262.65,0.02643696]
[1737701219245,17.09895525,262.86,262.65,0.02643696]
[1737701219448,0.02729361,262.75,262.62,14.56185525]
[1737701219651,0.02729361,262.75,262.73,0.02662133]
[1737701219840,0.02729361,262.75,262.62,14.56185525]
[1737701220045,0.02729361,262.75,262.71,0.02543148]
[1737701220446,3.83379361,262.75,262.71,0.02543148]
[1737701220647,0.02729361,262.75,262.71,0.02543148]
[1737701221043,0.02729361,262.75,262.71,3.83243148]
[1737701221351,0.02729361,262.75,262.71,0.02543148]
[1737701221955,14.56185525,262.91,262.71,0.02543148]
[1737701222148,14.56185525,262.91,262.67,14.56185525]
[1737701222648,14.56185525,262.96,262.72,14.56185525]
[1737701222947,0.02573857,262.87,262.81,0.02654556]
[1737701224352,3.8053,262.83,262.81,0.02654556]
[1737701224855,0.02573857,262.87,262.81,0.02654556]
[1737701225952,3.8053,262.83,262.81,0.02654556]
[1737701227562,3.8051,262.85,262.81,0.02654556]
[1737701227761,0.02573857,262.87,262.81,0.02654556]
[1737701228055,3.805,262.85,262.81,0.02654556]
[1737701228462,0.02573857,262.87,262.81,0.02654556]
[1737701228760,3.8049,262.86,262.81,0.02654556]
[1737701228963,0.02573857,262.87,262.81,0.02654556]
[1737701229362,3.8053,262.83,262.81,0.02654556]
[1737701230460,14.56185525,262.86,262.6,18.40185525]
[1737701230662,2.5713,262.85,262.64,1.6904]
[1737701230853,2.5713,262.85,262.64,5.4983]
[1737701231056,3.8071,262.71,262.64,5.4983]
[1737701231259,2.5713,262.85,262.64,1.6904]
[1737701231761,3.8064,262.75,262.74,0.02491299]
[1737701235561,0.02600453,262.79,262.74,0.02491299]
[1737701236162,3.8063,262.76,262.74,0.02491299]
[1737701237171,0.02600453,262.79,262.74,0.02491299]
[1737701240774,0.02600453,262.79,262.74,3.83141299]
[1737701241072,0.02600453,262.79,262.7,14.23556824]
[1737701241976,3.8063,262.76,262.7,14.23556824]
[1737701242274,3.8063,262.76,262.72,0.02743896]
[1737701243374,3.8065,262.75,262.72,0.02743896]
[1737701243876,0.02600453,262.79,262.72,0.02743896]
[1737701244478,3.8067,262.73,262.72,0.02743896]
[1737701245476,3.8077,262.67,262.54,14.56185525]
[1737701245675,3.8077,262.67,262.55,1.278]
[1737701246476,3.835225,262.64,262.58,0.02518064]
[1737701246672,14.56185525,262.76,262.55,1.278]
[1737701246872,0.02601292,262.64,262.58,0.02527235]
[1737701247079,3.8099,262.52,262.48,126.04854445]
[1737701247382,14.56185525,262.66,262.44,105.89822521]
[1737701247679,3.8099,262.52,262.44,105.89822521]
[1737701248279,0.02922745,262.51,262.45,0.02597198]
[1737701248481,14.56185525,262.61,262.44,105.89822521]
[1737701248681,0.02459153,262.51,262.45,0.02500569]
[1737701248875,0.02459153,262.51,262.44,105.89822521]
[1737701249078,0.02459153,262.51,262.45,0.02924817]
[1737701250584,1.2142,262.65,262.46,14.56185525]
[1737701250786,1.2142,262.65,262.47,1.3056]
[1737701251084,3.8088,262.59,262.47,1.3056]
[1737701251280,1.2142,262.65,262.47,1.3056]
[1737701251589,0.02572706,262.59,262.53,0.02459441]
[1737701252386,3.83452706,262.59,262.53,0.02459441]
[1737701252587,0.02572706,262.59,262.53,0.02459441]
[1737701253889,3.83452706,262.59,262.53,0.02459441]
[1737701254186,0.02572706,262.59,262.53,0.02459441]
[1737701255588,3.83452706,262.59,262.53,0.02459441]
[1737701256292,0.02572706,262.59,262.53,0.02459441]
[1737701257188,0.02572706,262.59,262.54,3.8094]
[1737701257390,0.02572706,262.59,262.53,0.02459441]
[1737701257690,0.02572706,262.59,262.55,3.8093]
[1737701257892,0.02572706,262.59,262.53,0.02459441]
[1737701258990,0.02572706,262.59,262.53,3.83409441]
[1737701260087,14.56185525,262.78,262.56,14.56185525]
[1737701260687,3.8072,262.7,262.6,3.8085]
[1737701261287,14.56185525,262.78,262.62,0.02487263]
[1737701261591,14.58922234,262.68,262.5,3.84]
[1737701261792,2.4592,262.67,262.5,3.84]
[1737701261984,3.8087,262.59,262.56,0.02822218]
[1737701262186,0.0243805,262.62,262.56,0.02822218]
[1737701262589,3.8089,262.58,262.56,0.02822218]
[1737701263584,3.8097,262.53,262.42,0.35324]
[1737701264787,0.02462698,262.5,262.45,0.02695358]
[1737701264993,14.56185525,262.63,262.42,0.35324]
[1737701265193,0.02685364,262.5,262.45,0.02774315]
[1737701265396,14.56185525,262.63,262.42,0.35324]
[1737701265586,0.02476973,262.5,262.45,0.02550399]
[1737701265787,3.81,262.51,262.42,0.35324]
[1737701265987,0.0263639,262.5,262.45,0.02399968]
[1737701266686,0.0263639,262.5,262.45,3.83469968]
[1737701266887,0.0263639,262.5,262.45,0.02399968]
[1737701267995,0.0263639,262.5,262.47,3.8104]
[1737701268198,0.0263639,262.5,262.45,0.02399968]
[1737701269095,14.56185525,262.64,262.45,0.02399968]
[1737701269301,14.56185525,262.64,262.44,14.56185525]
[1737701269492,3.8084,262.62,262.51,3.8098]
[1737701269695,4.0694,262.67,262.51,3.8098]
[1737701270297,3.8085,262.61,262.56,0.02908675]
[1737701270997,0.02557567,262.62,262.56,0.02908675]
[1737701271898,3.8098,262.52,262.43,3.811]
[1737701272099,3.8098,262.52,262.42,0.35324]
[1737701272705,14.56185525,262.59,262.42,0.35324]
[1737701272905,0.02472273,262.53,262.48,0.02657251]
[1737701275201,3.8101,262.5,262.48,0.02657251]
[1737701279304,3.8102,262.49,262.48,0.02657251]
[1737701281407,3.83442273,262.53,262.48,0.02657251]
[1737701281805,0.02472273,262.53,262.48,0.02657251]
[1737701282805,0.02472273,262.53,262.51,3.8099]
[1737701283114,3.8084,262.62,262.48,0.02657251]
[1737701283314,9.04997041,262.71,262.5,9.04997041]
[1737701283509,9.04997041,262.71,262.51,1.2551]
[1737701283912,9.04997041,262.71,262.52,1.5463]
[1737701284210,0.02406719,262.64,262.58,0.02403894]
[1737701284407,3.8086,262.6,262.58,0.02403894]
[1737701287520,3.83216719,262.64,262.58,0.02403894]
[1737701287711,0.02406719,262.64,262.58,0.02403894]
[1737701288111,3.8086,262.6,262.58,0.02403894]
[1737701288419,0.02406719,262.64,262.58,0.02403894]
[1737701288618,3.8085,262.61,262.58,0.02403894]
[1737701288917,0.02406719,262.64,262.58,0.02403894]
[1737701289914,3.8085,262.61,262.58,0.02403894]
[1737701290118,0.02406719,262.64,262.58,0.02403894]
[1737701290822,3.8087,262.6,262.58,0.02403894]
[1737701296230,14.47471914,262.62,262.48,1.5463]
[1737701296432,3.8096,262.53,262.48,1.5463]
[1737701296630,14.47471914,262.62,262.48,1.5463]
[1737701296931,3.8099,262.51,262.48,1.5463]
[1737701297430,0.02827706,262.52,262.47,0.02509092]
[1737701298132,3.8101,262.5,262.47,0.02509092]
[1737701298832,3.8102,262.49,262.47,0.02509092]
[1737701299434,3.8103,262.48,262.47,0.02509092]
[1737701300735,3.83817706,262.52,262.47,0.02509092]
[1737701301435,0.02827706,262.52,262.47,0.02509092]
[1737701301734,3.81,262.51,262.47,0.02509092]
[1737701301935,0.02827706,262.52,262.47,0.02509092]
[1737701302336,3.83817706,262.52,262.47,0.02509092]
[1737701302536,0.02827706,262.52,262.47,0.02509092]
[1737701303135,3.83807706,262.52,262.47,0.02509092]
[1737701304337,3.8102,262.49,262.47,0.02509092]
[1737701304538,0.02827706,262.52,262.47,0.02509092]
[1737701305031,3.8101,262.5,262.47,0.02509092]
[1737701308841,0.02827706,262.52,262.47,0.02509092]
[1737701310043,3.8099,262.51,262.47,0.02509092]
[1737701310239,0.02827706,262.52,262.47,0.02509092]
[1737701310541,3.8099,262.51,262.47,0.02509092]
[1737701310839,0.02827706,262.52,262.47,0.02509092]
[1737701312145,3.8099,262.51,262.47,0.02509092]
[1737701313346,3.81,262.5,262.47,0.02509092]
[1737701315343,3.8102,262.49,262.47,0.02509092]
[1737701317350,3.8103,262.48,262.47,0.02509092]
[1737701322548,3.8102,262.5,262.47,0.02509092]
[1737701322751,0.02827706,262.52,262.47,0.02509092]
[1737701324749,3.8101,262.5,262.47,0.02509092]
[1737701325458,0.02827706,262.52,262.47,0.02509092]
[1737701325854,3.83817706,262.52,262.47,0.02509092]
[1737701326157,0.02827706,262.52,262.47,0.02509092]
[1737701326657,0.02827706,262.52,262.5,3.81]
[1737701326851,0.02827706,262.52,262.47,0.02509092]
[1737701327359,0.02827706,262.52,262.47,3.83539092]
[1737701327553,0.02827706,262.52,262.47,0.02509092]
[1737701327959,3.8102,262.49,262.47,0.02509092]
[1737701328164,0.02827706,262.52,262.47,0.02509092]
[1737701328555,3.8102,262.49,262.47,0.02509092]
[1737701330365,3.8102,262.49,262.47,9.092e-05]
[1737701335764,10.26511114,262.51,262.48,3.8103]
[1737701335963,0.02827706,262.52,262.47,9.092e-05]
[1737701336467,3.8102,262.49,262.47,9.092e-05]
[1737701336769,0.02827706,262.52,262.47,9.092e-05]
[1737701337062,3.8103,262.48,262.47,9.092e-05]
[1737701341666,3.83807706,262.52,262.47,9.092e-05]
[1737701341868,5.7927546,262.65,262.49,5.7927546]
[1737701342069,21.22067548,262.69,262.61,5.7927546]
[1737701342468,21.22067548,262.69,262.62,1.6321]
[1737701343073,0.02810221,262.68,262.63,0.02405476]
[1737701348274,3.8078,262.66,262.63,0.02405476]
[1737701348984,0.02810221,262.68,262.63,0.02405476]
[1737701351474,3.8079,262.65,262.63,0.02405476]
[1737701353572,3.8077,262.66,262.63,0.02405476]
[1737701354075,0.02810221,262.68,262.63,0.02405476]
[1737701354377,3.8079,262.65,262.63,0.02405476]
[1737701358073,3.8079,262.65,262.34,16.6629193]
[1737701358074,9.0384193,262.64,262.47,9.0384193]
[1737701358272,9.0384193,262.64,262.47,12.8488193]
[1737701358473,9.0384193,262.64,262.47,9.0384193]
[1737701358773,3.8095,262.54,262.47,9.0384193]
[1737701359081,0.02682213,262.53,262.48,0.02765088]
[1737701359394,3.8097,262.53,262.47,9.0384193]
[1737701359578,3.83542099,262.53,262.48,0.02679231]
[1737701360174,3.81,262.51,262.48,0.02679231]
[1737701360381,0.02572099,262.53,262.48,0.02679231]
[1737701362680,0.02572099,262.53,262.48,5.46359231]
[1737701363681,0.02572099,262.53,262.48,1.65329231]
[1737701365684,0.02572099,262.53,262.51,5.78995791]
[1737701367285,3.8099,262.51,262.48,5.81675022]
[1737701367584,0.02572099,262.53,262.48,5.81675022]
[1737701370288,0.02572099,262.53,262.48,0.02679231]
[1737701371887,3.81,262.5,262.48,0.02679231]
[1737701372192,0.02572099,262.53,262.48,5.81675022]
[1737701372992,0.02572099,262.53,262.48,9.62695022]
[1737701373192,0.02572099,262.53,262.51,5.78995791]
[1737701373493,4.1048,262.67,262.51,5.78995791]
[1737701373494,3.8081,262.64,262.55,3.8093]
[1737701373693,3.8081,262.64,262.57,5.78995791]
[1737701373893,5.78995791,262.68,262.57,5.78995791]
[1737701374491,0.02569669,262.65,262.57,5.78995791]
[1737701374694,0.02569669,262.65,262.6,0.02416833]
[1737701374887,3.8083,262.62,262.6,0.02416833]
[1737701375094,9.59825791,262.62,262.6,0.02416833]
[1737701375394,5.78995791,262.62,262.51,5.78995791]
[1737701375590,5.78995791,262.65,262.54,5.78995791]
[1737701375791,3.8085,262.61,262.54,5.78995791]
[1737701375994,5.78995791,262.65,262.54,5.78995791]
[1737701376395,0.02926763,262.62,262.57,0.02758225]
[1737701378595,0.02926763,262.62,262.57,5.81754016]
[1737701378994,0.02926763,262.62,262.6,5.78995791]
[1737701381196,481.02926763,262.62,262.6,5.78995791]
[1737701381590,481.02926763,262.62,262.6,9.59855791]
[1737701381591,479.03096763,262.62,262.6,9.59855791]
[1737701381797,464.69929128,262.62,262.6,9.59855791]
[1737701383098,463.88009128,262.62,262.6,9.59855791]
[1737701385790,463.88009128,262.62,262.6,5.78995791]
[1737701387400,1223.0,262.61,262.57,5.81754016]
[1737701387699,3.8082,262.63,262.57,5.81754016]
[1737701387999,0.02638047,262.64,262.57,0.02758225]
[1737701388697,0.02638047,262.64,262.57,5.81754016]
[1737701388891,0.02638047,262.64,262.6,5.78995791]
[1737701389197,0.02638047,262.64,262.6,9.59845791]
[1737701389499,0.02638047,262.64,262.6,5.78995791]
[1737701390402,0.02638047,262.64,262.62,3.8082]
[1737701391398,0.02638047,262.64,262.63,5.78995791]
[1737701391898,0.02638047,262.64,262.62,3.8082]
[1737701392201,0.02638047,262.64,262.59,9.03767234]
[1737701392405,0.02638047,262.64,262.57,3.83648225]
[1737701392593,0.02638047,262.64,262.57,0.02758225]
[1737701393399,0.02638047,262.64,262.57,3.83648225]
[1737701393599,0.02638047,262.64,262.57,0.02758225]
[1737701395100,1208.2248,262.63,262.57,0.02758225]
[1737701395297,1.2159,262.93,262.6,18.07534468]
[1737701395500,1.2159,262.93,262.73,9.03767234]
[1737701395696,1.2159,262.93,262.73,12.85767234]
[1737701396105,3.8042,262.91,262.77,3.806]
[1737701396499,0.02752963,262.87,262.81,0.02849088]
[1737701399011,9.03767234,263.06,262.85,9.03767234]
[1737701399207,3.8027,263.01,262.85,9.03767234]
[1737701399413,9.03767234,263.06,262.89,9.03767234]
[1737701400308,0.0287941,263.0,262.95,0.02504743]
[1737701400702,0.0287941,263.0,262.8,9.03767234]
[1737701400910,9.03767234,263.02,262.8,9.03767234]
[1737701401408,9.03767234,262.98,262.8,9.03767234]
[1737701401806,9.03767234,262.98,262.74,1.9316]
[1737701401807,0.0276442,262.92,262.86,0.02533338]
[1737701402009,9.03767234,263.03,262.84,9.03767234]
[1737701402311,0.02522014,262.92,262.86,0.02818706]
[1737701402513,0.02522014,262.92,262.88,9.03767234]
[1737701402710,9.03767234,263.13,262.88,9.03767234]
[1737701403004,3.8033,262.97,262.88,9.03767234]
[1737701403209,10.32887234,263.12,262.92,9.03767234]
[1737701403409,1.4958,263.08,262.92,9.03767234]
[1737701403913,0.0253921,263.03,262.97,0.02420404]
[1737701404815,3.8026,263.02,262.97,0.02420404]
[1737701405307,0.0253921,263.03,262.86,9.03767234]
[1737701405511,3.803,262.99,262.86,9.03767234]
[1737701405713,9.03767234,263.04,262.86,9.03767234]
[1737701405910,1.2464,263.03,262.86,9.03767234]
[1737701406311,0.02642742,262.97,262.92,0.02435294]
[1737701410617,0.02642742,262.97,262.94,9.03767234]
[1737701411116,2.742e-05,262.97,262.95,3.8035]
[1737701412213,2.742e-05,262.97,262.94,9.03767234]
[1737701414410,2.742e-05,262.97,262.95,3.8035]
[1737701416514,2.742e-05,262.97,262.92,0.02435294]
[1737701416910,3.8034,262.96,262.92,0.02435294]
[1737701417114,2.742e-05,262.97,262.92,0.02435294]
[1737701417511,9.03767234,262.95,262.84,2.20978771]
[1737701417713,1.5079,262.94,262.84,2.20978771]
[1737701418623,0.0263515,262.92,262.86,0.02914991]
[1737701419422,3.8044,262.9,262.86,0.02914991]
[1737701420623,9.03767234,262.87,262.81,0.36398]
[1737701420819,9.03767234,262.83,262.64,12.83767234]
[1737701421025,9.03767234,262.83,262.65,3.8]
[1737701421324,3.8059,262.79,262.66,3.8077]
[1737701421626,3.8059,262.79,262.62,0.3045]
[1737701421627,9.03767234,262.79,262.62,0.3045]
[1737701421825,3.83478573,262.75,262.7,0.02744508]
[1737701422326,3.8068,262.73,262.7,0.02744508]
[1737701422526,0.02828573,262.75,262.71,9.03767234]
[1737701422721,0.02828573,262.75,262.7,0.02744508]
[1737701424326,3.8068,262.73,262.7,0.02744508]
[1737701424528,3.8068,262.73,262.59,3.8087]
[1737701425022,3.8068,262.73,262.56,14.45900596]
[1737701425223,3.8068,262.73,262.6,3.8085]
[1737701425718,0.028904,262.69,262.64,0.02668397]
[1737701427020,4e-06,262.69,262.67,3.8075]
[1737701430827,4e-06,262.69,262.64,3.83458397]
[1737701431029,4e-06,262.69,262.64,0.02668397]
[1737701431226,4e-06,262.69,262.66,14.45900596]
[1737701431527,4e-06,262.69,262.67,3.8074]
[1737701433821,153.05829525,263.07,262.66,14.45900596]
[1737701434026,1.2589,262.94,262.71,14.45900596]
[1737701434232,3.804,262.92,262.71,14.45900596]
[1737701434630,1.2589,262.94,262.71,14.45900596]
[1737701435030,0.02837573,262.85,262.8,0.02437448]
[1737701436127,0.02837573,262.85,262.81,3.8055]
[1737701436329,0.02837573,262.85,262.8,0.02437448]